bitfinex/quotes_BTCUSD_20240613
["timestamp","ask_amount","ask_price","bid_price","bid_amount"]
[1718240694056,0.28068286,68319.0,68318.0,0.239227]
[1718240694338,0.22090113,68319.0,68318.0,0.239227]
[1718240694529,0.34629027,68319.0,68318.0,0.239227]
[1718240694993,0.60454281,68319.0,68318.0,0.239227]
[1718240695182,0.79082032,68319.0,68318.0,0.239227]
[1718240697383,0.70344285,68319.0,68318.0,0.239227]
[1718240698023,0.70356188,68319.0,68318.0,0.239227]
[1718240699273,0.38559801,68319.0,68318.0,0.239227]
[1718240699447,0.33716762,68319.0,68318.0,0.239227]
[1718240700115,0.39670957,68319.0,68318.0,0.239227]
[1718240700278,0.72108251,68319.0,68318.0,0.239227]
[1718240700662,0.39670957,68319.0,68318.0,0.239227]
[1718240701264,0.72108091,68319.0,68318.0,0.239227]
[1718240701612,0.80881003,68319.0,68318.0,0.239227]
[1718240701916,0.72108091,68319.0,68318.0,0.239227]
[1718240702120,0.72108091,68319.0,68318.0,0.359227]
[1718240702121,0.03804765,68319.0,68318.0,0.359227]
[1718240702287,0.03804765,68319.0,68318.0,0.239227]
[1718240702484,0.03804765,68319.0,68318.0,0.359227]
[1718240702690,0.09394765,68319.0,68318.0,0.359227]
[1718240702893,0.23826758,68319.0,68318.0,0.239227]
[1718240703095,0.2918371,68319.0,68318.0,0.239227]
[1718240703461,0.2851559,68319.0,68318.0,0.239227]
[1718240703684,0.32903365,68319.0,68318.0,0.239227]
[1718240704150,0.2851559,68319.0,68318.0,0.239227]
[1718240710896,0.26778945,68319.0,68318.0,0.239227]
[1718240712982,0.28552062,68319.0,68318.0,0.239227]
[1718240713831,0.2319511,68319.0,68318.0,0.239227]
[1718240715458,0.2319511,68319.0,68318.0,0.085027]
[1718240716563,0.2319511,68319.0,68318.0,0.009427]
[1718240717268,0.29777685,68319.0,68318.0,0.009427]
[1718240719763,0.2319511,68319.0,68318.0,0.009427]
[1718240720090,0.3641701,68319.0,68318.0,0.009427]
[1718240720319,0.71153747,68319.0,68318.0,0.009427]
[1718240723421,0.6938063,68319.0,68318.0,0.009427]
[1718240725278,0.75187304,68319.0,68318.0,0.009427]
[1718240725679,0.76971264,68319.0,68318.0,0.009427]
[1718240734909,0.710495,68319.0,68318.0,0.009427]
[1718240735080,0.76870493,68319.0,68318.0,0.009427]
[1718240735691,0.76871847,68319.0,68318.0,0.009427]
[1718240736825,0.75087887,68319.0,68318.0,0.009427]
[1718240739758,0.86058589,68319.0,68318.0,0.009427]
[1718240740664,0.87784614,68319.0,68318.0,0.009427]
[1718240741047,0.85590214,68319.0,68318.0,0.009427]
[1718240741452,0.76813912,68319.0,68318.0,0.009427]
[1718240748908,0.76861907,68319.0,68318.0,0.009427]
[1718240749098,0.87832609,68319.0,68318.0,0.009427]
[1718240750771,0.76861907,68319.0,68318.0,0.009427]
[1718240751946,0.75135882,68319.0,68318.0,0.009427]
[1718240753626,0.37224235,68319.0,68318.0,0.009427]
[1718240753830,0.75115259,68319.0,68318.0,0.009427]
[1718240754292,0.90505259,68319.0,68318.0,0.009427]
[1718240754513,1.05015259,68319.0,68318.0,0.009427]
[1718240754956,1.05015259,68319.0,68314.0,1e-08]
[1718240754957,0.07473584,68315.0,68314.0,1e-08]
[1718240755162,0.68199765,68315.0,68314.0,1e-08]
[1718240755403,0.97333049,68315.0,68314.0,1e-08]
[1718240755630,0.99633049,68315.0,68314.0,1e-08]
[1718240755861,1.14446757,68315.0,68314.0,1e-08]
[1718240756075,1.28146937,68315.0,68314.0,1e-08]
[1718240756288,1.13714944,68315.0,68314.0,1e-08]
[1718240756515,1.19304944,68315.0,68314.0,1e-08]
[1718240758673,1.20704944,68315.0,68314.0,1e-08]
[1718240758913,1.20760086,68315.0,68314.0,1e-08]
[1718240759080,1.22160086,68315.0,68314.0,1e-08]
[1718240759402,1.35192079,68315.0,68314.0,1e-08]
[1718240759638,1.35161273,68315.0,68314.0,1e-08]
[1718240759865,1.36561273,68315.0,68314.0,1e-08]
[1718240761991,1.35161273,68315.0,68314.0,1e-08]
[1718240762635,1.36561273,68315.0,68314.0,1e-08]
[1718240762853,1.49714407,68315.0,68314.0,1e-08]
[1718240763077,1.36561273,68315.0,68314.0,1e-08]
[1718240763534,1.48311834,68315.0,68314.0,1e-08]
[1718240764430,1.48309087,68315.0,68314.0,1e-08]
[1718240764943,0.02473584,68311.0,68310.0,1e-08]
[1718240765168,0.94884924,68311.0,68310.0,1e-08]
[1718240765382,1.14037973,68311.0,68310.0,1e-08]
[1718240765603,1.16337973,68311.0,68310.0,1e-08]
[1718240766268,1.17737973,68311.0,68310.0,1e-08]
[1718240766503,1.32169966,68311.0,68310.0,1e-08]
[1718240767339,1.24815167,68311.0,68310.0,1e-08]
[1718240768127,0.92514143,68311.0,68310.0,1e-08]
[1718240768363,1.24960625,68311.0,68310.0,1e-08]
[1718240768617,1.03050625,68311.0,68310.0,1e-08]
[1718240768827,1.04450625,68311.0,68310.0,1e-08]
[1718240770340,0.88944394,68311.0,68310.0,1e-08]
[1718240770766,1.03747547,68311.0,68310.0,1e-08]
[1718240771181,1.08257547,68311.0,68310.0,1e-08]
[1718240771731,1.06857547,68311.0,68310.0,1e-08]
[1718240771955,1.08257547,68311.0,68310.0,1e-08]
[1718240772372,1.02387205,68311.0,68310.0,1e-08]
[1718240772750,1.08224977,68311.0,68310.0,1e-08]
[1718240775358,1.13224977,68311.0,68310.0,1e-08]
[1718240776717,0.02473584,68298.0,68292.0,0.0766]
[1718240776936,0.02473584,68292.0,68291.0,0.009438]
[1718240777143,0.38102345,68292.0,68291.0,0.009438]
[1718240777352,0.53929178,68292.0,68291.0,0.009438]
[1718240777538,0.62883096,68292.0,68291.0,0.009438]
[1718240777781,0.95337797,68292.0,68291.0,0.009438]
[1718240778001,1.00337797,68292.0,68291.0,0.009438]
[1718240778220,1.00346849,68292.0,68291.0,0.009438]
[1718240778433,1.11288109,68292.0,68291.0,0.009438]
[1718240779074,1.11288109,68292.0,68279.0,0.046]
[1718240779075,0.02473584,68282.0,68279.0,0.0819]
[1718240779290,0.31342547,68282.0,68279.0,0.0819]
[1718240779530,0.42052689,68282.0,68279.0,0.0819]
[1718240779736,0.58617521,68282.0,68279.0,0.0819]
[1718240780579,0.53452689,68282.0,68279.0,0.0819]
[1718240781748,0.53452689,68282.0,68277.0,0.009438]
[1718240781749,0.78452689,68282.0,68277.0,0.009438]
[1718240781955,0.07473584,68278.0,68277.0,0.009438]
[1718240782163,0.33295286,68278.0,68277.0,0.009438]
[1718240782368,0.48374523,68278.0,68277.0,0.009438]
[1718240782570,0.54005331,68278.0,68277.0,0.009438]
[1718240782777,0.56305331,68278.0,68277.0,0.009438]
[1718240782985,0.73719377,68278.0,68277.0,0.00795181]
[1718240783399,0.7167542,68278.0,68277.0,0.00795181]
[1718240783569,0.8702542,68278.0,68277.0,0.00795181]
[1718240783813,1.19241468,68278.0,68277.0,0.00795181]
[1718240784019,1.27980077,68278.0,68277.0,0.00795181]
[1718240784228,0.94976088,68278.0,68277.0,0.00795181]
[1718240784430,0.8842542,68278.0,68277.0,2.951e-05]
[1718240785297,0.8702542,68278.0,68277.0,2.951e-05]
[1718240785537,0.92788795,68278.0,68277.0,2.951e-05]
[1718240785765,0.92788795,68278.0,68261.0,0.009438]
[1718240785766,0.97913584,68269.0,68261.0,0.009438]
[1718240785972,1.46745331,68269.0,68261.0,0.009438]
[1718240786218,1.51109071,68269.0,68261.0,0.009438]
[1718240786629,1.46745331,68269.0,68261.0,0.009438]
[1718240787703,1.40945622,68269.0,68261.0,0.009438]
[1718240787811,1.6124264,68269.0,68261.0,0.009438]
[1718240788427,1.55377615,68269.0,68261.0,0.009438]
[1718240788642,1.09795577,68269.0,68261.0,0.009438]
[1718240788846,1.11195577,68269.0,68261.0,0.009438]
[1718240789455,0.61195577,68269.0,68261.0,0.009438]
[1718240789653,0.61195577,68269.0,68268.0,0.252038]
[1718240789654,0.21421993,68269.0,68268.0,0.252038]
[1718240789875,0.22495577,68269.0,68268.0,0.252038]
[1718240790092,0.25245135,68269.0,68268.0,0.252038]
[1718240790268,0.26645135,68269.0,68268.0,0.252038]
[1718240790514,0.25245135,68269.0,68268.0,0.252038]
[1718240790718,0.25245135,68269.0,68268.0,0.086738]
[1718240790869,0.26645135,68269.0,68268.0,0.086738]
[1718240791075,0.36645135,68269.0,68268.0,0.086738]
[1718240791483,0.38945135,68269.0,68268.0,0.086738]
[1718240792064,0.38945135,68269.0,68268.0,0.009438]
[1718240792065,0.37545135,68269.0,68268.0,0.009438]
[1718240792477,0.38945135,68269.0,68268.0,0.009438]
[1718240792683,0.37545135,68269.0,68268.0,0.009438]
[1718240793026,0.38945135,68269.0,68268.0,0.009438]
[1718240793227,0.37545135,68269.0,68268.0,0.009438]
[1718240793646,0.38945135,68269.0,68268.0,0.009438]
[1718240794907,0.43945135,68269.0,68268.0,0.009438]
[1718240795279,0.42545135,68269.0,68268.0,0.009438]
[1718240795480,0.43945135,68269.0,68268.0,0.009438]
[1718240795881,0.42545135,68269.0,68268.0,0.009438]
[1718240796503,0.43945135,68269.0,68268.0,0.009438]
[1718240796707,0.43945135,68269.0,68268.0,0.162238]
[1718240796708,0.35605577,68269.0,68268.0,0.162238]
[1718240796933,0.39795577,68269.0,68268.0,0.162238]
[1718240797141,0.31905577,68269.0,68268.0,0.237938]
[1718240797387,0.38895577,68269.0,68268.0,0.237938]
[1718240797594,0.15831993,68269.0,68268.0,0.357938]
[1718240798199,0.05,68287.0,68268.0,0.357938]
[1718240798200,0.0559,68279.0,68278.0,0.12]
[1718240798489,0.058608,68287.0,68268.0,0.03470216]
[1718240798490,0.14431993,68286.0,68285.0,0.1565]
[1718240798620,0.20021993,68286.0,68285.0,0.1565]
[1718240798820,0.14431993,68286.0,68285.0,0.2765]
[1718240799069,0.14431993,68286.0,68285.0,0.3523]
[1718240799719,0.14431993,68286.0,68285.0,0.2323]
[1718240800376,0.15831993,68286.0,68285.0,0.2323]
[1718240800765,0.15917993,68286.0,68285.0,0.3523]
[1718240801178,0.01486,68286.0,68285.0,0.3523]
[1718240801867,0.01486,68286.0,68285.0,0.3623]
[1718240802074,0.01486,68286.0,68284.0,0.02526416]
[1718240802075,0.02473584,68310.0,68302.0,0.2341]
[1718240802277,0.05,68314.0,68302.0,0.2341]
[1718240802278,0.02473584,68308.0,68307.0,0.046]
[1718240802494,0.16905577,68308.0,68307.0,0.046]
[1718240802634,0.16905577,68308.0,68302.0,0.2341]
[1718240802635,0.02473584,68306.0,68302.0,0.2341]
[1718240802857,0.14431993,68305.0,68302.0,0.2341]
[1718240804069,0.14531993,68305.0,68302.0,0.2351]
[1718240804703,0.1,68304.0,68302.0,0.2351]
[1718240804962,0.14431993,68303.0,68302.0,0.2351]
[1718240805126,0.24431993,68303.0,68302.0,0.3551]
[1718240805325,0.24431993,68303.0,68302.0,0.2341]
[1718240805695,0.24431993,68303.0,68302.0,0.2351]
[1718240805898,0.24431993,68303.0,68302.0,0.2341]
[1718240806304,0.24431993,68303.0,68302.0,0.2351]
[1718240806512,0.24431993,68303.0,68302.0,0.2551]
[1718240806928,0.24431993,68303.0,68302.0,0.2351]
[1718240807134,0.24431993,68303.0,68302.0,0.2341]
[1718240807338,0.24431993,68303.0,68302.0,0.2541]
[1718240807543,0.24431993,68303.0,68302.0,0.2341]
[1718240808589,0.24431993,68303.0,68302.0,0.2351]
[1718240808775,0.24431993,68303.0,68302.0,0.2341]
[1718240809203,0.24431993,68303.0,68302.0,0.2351]
[1718240809551,0.24431993,68303.0,68302.0,0.2341]
[1718240809965,0.24431993,68303.0,68302.0,0.2351]
[1718240811370,0.24431993,68303.0,68302.0,0.3551]
[1718240811838,0.24431993,68303.0,68302.0,0.3541]
[1718240812254,0.24431993,68303.0,68302.0,0.3551]
[1718240812472,0.24431993,68303.0,68302.0,0.2341]
[1718240812888,0.24431993,68303.0,68302.0,0.2351]
[1718240813092,0.24431993,68303.0,68302.0,0.3551]
[1718240814346,0.24431993,68303.0,68302.0,0.2351]
[1718240815060,0.24431993,68303.0,68302.0,0.3551]
[1718240817690,0.24431993,68303.0,68302.0,0.2351]
[1718240818096,0.24431993,68303.0,68302.0,0.3551]
[1718240818880,0.24431993,68303.0,68302.0,0.2551]
[1718240819215,0.24431993,68303.0,68302.0,0.2351]
[1718240820070,0.24431993,68303.0,68302.0,0.2341]
[1718240820462,0.24431993,68303.0,68302.0,0.2351]
[1718240820661,0.27555157,68303.0,68302.0,0.001]
[1718240821356,0.27555157,68303.0,68300.0,0.046]
[1718240821644,0.1,68302.0,68300.0,0.046]
[1718240821915,0.14431993,68301.0,68300.0,0.046]
[1718240822161,0.27614832,68301.0,68300.0,0.046]
[1718240822378,0.27614832,68301.0,68296.0,0.2417]
[1718240822379,0.30088416,68301.0,68296.0,0.1585]
[1718240822601,0.1,68300.0,68293.0,0.2053]
[1718240822814,0.20154151,68299.0,68293.0,0.2053]
[1718240824095,0.20154151,68299.0,68293.0,0.2063]
[1718240824302,0.20154151,68299.0,68293.0,0.2053]
[1718240824512,0.20154151,68299.0,68296.0,0.02]
[1718240824725,0.14431993,68299.0,68297.0,0.2515]
[1718240824932,0.14431993,68299.0,68297.0,0.2315]
[1718240826621,0.14431993,68299.0,68294.0,0.1624]
[1718240826997,0.14431993,68299.0,68297.0,0.001]
[1718240827202,0.14431993,68299.0,68297.0,0.121]
[1718240827402,0.14431993,68299.0,68298.0,0.12]
[1718240827625,0.24431993,68299.0,68297.0,0.001]
[1718240827811,0.24431993,68299.0,68294.0,0.2824]
[1718240828034,0.24431993,68299.0,68296.0,0.12]
[1718240828241,0.24431993,68299.0,68294.0,0.2824]
[1718240828465,0.24431993,68299.0,68294.0,0.1624]
[1718240829014,0.24431993,68299.0,68294.0,0.1824]
[1718240829015,0.02443199,68298.0,68294.0,0.1824]
[1718240829247,0.14431993,68297.0,68294.0,0.1824]
[1718240829628,0.14431993,68297.0,68294.0,0.1624]
[1718240830249,0.14431993,68297.0,68294.0,0.1634]
[1718240830663,0.02443199,68296.0,68294.0,0.1634]
[1718240830960,0.14431993,68295.0,68294.0,0.1634]
[1718240831131,0.14431993,68295.0,68294.0,0.1624]
[1718240831936,0.14431993,68295.0,68285.0,0.02526416]
[1718240831937,0.14431993,68295.0,68286.0,0.2352]
[1718240832145,0.14431993,68295.0,68279.0,0.02526416]
[1718240832146,0.02473584,68289.0,68281.0,0.0766]
[1718240832321,0.02473584,68285.0,68277.0,0.2046]
[1718240832521,0.14431993,68284.0,68277.0,0.2246]
[1718240832723,0.15081681,68284.0,68277.0,0.2046]
[1718240833113,0.15081681,68284.0,68283.0,0.1975]
[1718240833324,0.00649688,68284.0,68283.0,0.2346]
[1718240833539,0.14431993,68284.0,68283.0,0.2346]
[1718240833956,0.15126388,68284.0,68283.0,0.2346]
[1718240834197,0.15126388,68284.0,68283.0,0.3546]
[1718240834400,0.15126388,68284.0,68283.0,0.2346]
[1718240834605,0.15126388,68284.0,68283.0,0.3556]
[1718240835944,0.15126388,68284.0,68283.0,0.3546]
[1718240836411,0.16526388,68284.0,68283.0,0.3546]
[1718240836611,0.15126388,68284.0,68283.0,0.3546]
[1718240836873,0.15726388,68284.0,68283.0,0.3546]
[1718240837753,0.15126388,68284.0,68283.0,0.3546]
[1718240839064,0.15826388,68284.0,68283.0,0.3556]
[1718240839283,0.01394395,68284.0,68283.0,0.3556]
[1718240840184,0.007,68284.0,68283.0,0.3556]
[1718240844842,0.007,68284.0,68283.0,0.38086416]
[1718240848514,0.007,68284.0,68283.0,0.39086416]
[1718240852544,0.007,68284.0,68283.0,0.38086416]
[1718240853046,0.007,68284.0,68283.0,0.39086416]
[1718240860268,0.007,68284.0,68283.0,0.38086416]
[1718240860468,0.007,68284.0,68283.0,0.39086416]
[1718240863017,0.007,68284.0,68283.0,0.38086416]
[1718240863174,0.007,68284.0,68283.0,0.39086416]
[1718240864037,0.007,68284.0,68283.0,0.38086416]
[1718240864163,0.007,68284.0,68283.0,0.121]
[1718240864839,0.01385483,68284.0,68283.0,0.121]
[1718240865811,0.007,68284.0,68283.0,0.121]
[1718240866036,0.007,68284.0,68283.0,0.121946]
[1718240873995,0.15131993,68284.0,68283.0,0.121946]
[1718240874424,0.1580438,68284.0,68283.0,0.121946]
[1718240879305,0.17572283,68284.0,68283.0,0.121946]
[1718240879696,0.42142283,68284.0,68283.0,0.121946]
[1718240879903,0.17572283,68284.0,68283.0,0.121946]
[1718240883544,0.21963704,68284.0,68283.0,0.121946]
[1718240884552,0.17572283,68284.0,68283.0,0.121946]
[1718240885131,0.21963183,68284.0,68283.0,0.121946]
[1718240885590,0.2019528,68284.0,68283.0,0.121946]
[1718240886390,0.1580438,68284.0,68283.0,0.121946]
[1718240888648,0.20194257,68284.0,68283.0,0.121946]
[1718240888851,0.1580438,68284.0,68283.0,0.121946]
[1718240888979,0.20194257,68284.0,68283.0,0.121946]
[1718240889374,0.1580438,68284.0,68283.0,0.121946]
[1718240890071,0.20194257,68284.0,68283.0,0.121946]
[1718240890501,0.1580438,68284.0,68283.0,0.121946]
[1718240890708,0.2256533,68284.0,68283.0,0.121946]
[1718240891355,0.1580438,68284.0,68283.0,0.121946]
[1718240894187,0.1580438,68284.0,68283.0,0.001946]
[1718240895954,0.1580438,68284.0,68283.0,0.121946]
[1718240897771,0.1580438,68284.0,68283.0,0.001946]
[1718240898468,0.1580438,68284.0,68283.0,0.121946]
[1718240899076,0.20192291,68284.0,68283.0,0.121946]
[1718240899283,0.1580438,68284.0,68283.0,0.121946]
[1718240899759,0.2019214,68284.0,68283.0,0.121946]
[1718240900834,0.28050348,68284.0,68283.0,0.121946]
[1718240902045,0.2019214,68284.0,68283.0,0.121946]
[1718240903337,0.1580438,68284.0,68283.0,0.001946]
[1718240903542,0.51195197,68284.0,68283.0,0.001946]
[1718240903743,1.03884492,68284.0,68283.0,0.001946]
[1718240903992,0.9798071,68284.0,68283.0,0.001946]
[1718240904159,1.1190537,68284.0,68283.0,0.001946]
[1718240904770,1.1120537,68284.0,68283.0,0.000946]
[1718240905171,1.1190537,68284.0,68283.0,0.001946]
[1718240905392,1.1190537,68284.0,68283.0,0.000946]
[1718240905834,1.1190537,68284.0,68283.0,0.001946]
[1718240905835,1.1330537,68284.0,68283.0,0.001946]
[1718240906022,1.1260537,68284.0,68283.0,0.000946]
[1718240906387,1.06648849,68284.0,68283.0,0.001946]
[1718240907194,1.05976462,68284.0,68283.0,0.001946]
[1718240908006,1.09912527,68284.0,68283.0,0.000946]
[1718240908208,1.30431447,68284.0,68283.0,0.000946]
[1718240908433,1.18667964,68284.0,68283.0,0.001946]
[1718240908633,1.31831447,68284.0,68283.0,0.001946]
[1718240909194,1.30431447,68284.0,68283.0,0.000946]
[1718240909399,1.17267964,68284.0,68283.0,0.001946]
[1718240909600,1.18667964,68284.0,68283.0,0.001946]
[1718240911641,1.07031447,68284.0,68283.0,0.001946]
[1718240911823,0.9967601,68284.0,68283.0,0.001946]
[1718240912265,1.10629538,68284.0,68283.0,0.001946]
[1718240912847,0.9967601,68284.0,68283.0,0.001946]
[1718240913090,1.02294637,68284.0,68283.0,0.001946]
[1718240913292,1.13248165,68284.0,68283.0,0.001946]
[1718240913465,1.27141582,68284.0,68283.0,0.001946]
[1718240913799,1.16188054,68284.0,68283.0,0.001946]
[1718240914022,1.22048954,68284.0,68283.0,0.001946]
[1718240914146,1.33002482,68284.0,68283.0,0.001946]
[1718240915314,1.22048954,68284.0,68283.0,0.001946]
[1718240915472,1.15480815,68284.0,68283.0,0.001946]
[1718240915679,1.3301533,68284.0,68283.0,0.001946]
[1718240916736,1.22061802,68284.0,68283.0,0.001946]
[1718240917236,1.3301533,68284.0,68283.0,0.001946]
[1718240917441,1.22061802,68284.0,68283.0,0.001946]
[1718240917638,1.20325737,68284.0,68283.0,0.001946]
[1718240917809,1.31279265,68284.0,68283.0,0.001946]
[1718240918821,1.20325737,68284.0,68283.0,0.001946]
[1718240919448,0.8312232,68284.0,68283.0,0.047946]
[1718240919659,0.93402734,68284.0,68283.0,0.047946]
[1718240919885,0.52184464,68284.0,68283.0,0.047946]
[1718240920084,0.56565155,68284.0,68283.0,0.001946]
[1718240920631,0.52184464,68284.0,68283.0,0.001946]
[1718240921411,0.39792253,68284.0,68283.0,0.001946]
[1718240921615,0.39792253,68284.0,68283.0,0.246646]
[1718240921616,0.34192253,68284.0,68283.0,0.246646]
[1718240921947,0.27611266,68284.0,68283.0,0.246646]
[1718240922807,0.26211266,68284.0,68283.0,0.245646]
[1718240923008,0.26211266,68284.0,68283.0,0.246646]
[1718240923222,0.27611266,68284.0,68283.0,0.126646]
[1718240923430,0.33211266,68284.0,68283.0,0.126646]
[1718240923627,0.37226484,68284.0,68283.0,0.126646]
[1718240924644,0.43878025,68284.0,68283.0,0.126646]
[1718240925375,0.48260062,68284.0,68283.0,0.126646]
[1718240925944,0.43878025,68284.0,68283.0,0.126646]
[1718240926149,0.37226484,68284.0,68283.0,0.126646]
[1718240926579,0.35826484,68284.0,68283.0,0.125646]
[1718240926802,0.48275684,68284.0,68283.0,0.126646]
[1718240927255,0.48276539,68284.0,68283.0,0.126646]
[1718240928369,0.73550123,68284.0,68283.0,0.001946]
[1718240928609,0.71467231,68284.0,68283.0,0.001946]
[1718240928819,0.71467231,68284.0,68283.0,0.000946]
[1718240928820,1.11188284,68284.0,68283.0,0.000946]
[1718240929074,1.11188284,68284.0,68283.0,0.001946]
[1718240929278,0.71467231,68284.0,68283.0,0.001946]
[1718240929501,0.70093382,68284.0,68283.0,0.000946]
[1718240929721,0.49035782,68284.0,68283.0,0.047946]
[1718240929929,0.47256509,68284.0,68283.0,0.047946]
[1718240930190,0.45826189,68284.0,68283.0,0.046946]
[1718240930388,0.39152605,68284.0,68283.0,0.047946]
[1718240930622,0.39152605,68284.0,68283.0,0.046946]
[1718240930623,0.47226189,68284.0,68283.0,0.046946]
[1718240930843,0.45826189,68284.0,68283.0,0.046946]
[1718240931115,0.35452605,68284.0,68283.0,0.046946]
[1718240931335,0.36668836,68284.0,68283.0,0.046946]
[1718240931847,0.43244547,68284.0,68283.0,0.046946]
[1718240932524,0.36668836,68284.0,68283.0,0.046946]
[1718240932771,0.44644547,68284.0,68283.0,0.047946]
[1718240932995,0.44644547,68284.0,68283.0,0.001946]
[1718240933226,0.52379135,68284.0,68283.0,0.001946]
[1718240933443,1.18410514,68284.0,68283.0,0.001946]
[1718240933921,1.16999284,68284.0,68283.0,0.001946]
[1718240934372,1.09644729,68284.0,68283.0,0.001946]
[1718240934595,1.11431323,68284.0,68283.0,0.001946]
[1718240938931,1.11171271,68284.0,68283.0,0.001946]
[1718240940288,1.11288806,68284.0,68283.0,0.001946]
[1718240941181,1.09502212,68284.0,68283.0,0.001946]
[1718240941776,0.92942212,68284.0,68283.0,0.001946]
[1718240944649,0.92948347,68284.0,68283.0,0.001946]
[1718240945587,0.9467869,68284.0,68283.0,0.001946]
[1718240946192,1.02033846,68284.0,68283.0,0.001946]
[1718240948543,0.02473584,68274.0,68272.0,0.1521]
[1718240948800,0.02473584,68274.0,68269.0,0.046946]
[1718240948801,0.02473584,68271.0,68270.0,0.0832]
[1718240949034,0.24805577,68271.0,68270.0,0.0832]
[1718240949248,0.73204969,68271.0,68270.0,0.0832]
[1718240949461,0.51797072,68271.0,68270.0,0.0832]
[1718240949687,0.58380057,68271.0,68270.0,0.0832]
[1718240950593,0.59780057,68271.0,68270.0,0.0842]
[1718240950816,0.53197072,68271.0,68270.0,0.0842]
[1718240951043,0.42901691,68271.0,68270.0,0.0842]
[1718240951246,0.49484274,68271.0,68270.0,0.0842]
[1718240954297,0.49483569,68271.0,68270.0,0.0842]
[1718240954722,0.41409985,68271.0,68270.0,0.2042]
[1718240954927,0.41409985,68271.0,68270.0,0.3644]
[1718240955144,0.43883569,68271.0,68270.0,0.2444]
[1718240955356,0.30605577,68271.0,68270.0,0.2444]
[1718240955569,0.28131993,68271.0,68270.0,0.2644]
[1718240955784,0.35022399,68271.0,68270.0,0.3644]
[1718240955985,0.41604277,68271.0,68270.0,0.3644]
[1718240956343,0.35022399,68271.0,68270.0,0.3644]
[1718240956975,0.32722399,68271.0,68270.0,0.3644]
[1718240957188,0.25831993,68271.0,68270.0,0.3644]
[1718240957387,0.30219846,68271.0,68270.0,0.3644]
[1718240957587,0.25831993,68271.0,68270.0,0.3644]
[1718240958056,0.25831993,68271.0,68270.0,0.2644]
[1718240959467,0.25831993,68271.0,68270.0,0.3644]
[1718240960017,0.25831993,68271.0,68270.0,0.2644]
[1718240960593,0.25831993,68271.0,68270.0,0.3644]
[1718240963128,0.27611045,68271.0,68270.0,0.365346]
[1718240967935,0.25831993,68271.0,68270.0,0.365346]
[1718240969251,0.27633447,68271.0,68270.0,0.365346]
[1718240971829,0.3202115,68271.0,68270.0,0.365346]
[1718240972856,0.27633447,68271.0,68270.0,0.365346]
[1718240974084,0.32023453,68271.0,68270.0,0.365346]
[1718240974718,0.27633447,68271.0,68270.0,0.365346]
[1718240975119,0.32023453,68271.0,68270.0,0.365346]
[1718240975771,0.15831993,68271.0,68270.0,0.365346]
[1718240976309,0.014,68271.0,68270.0,0.365346]
[1718240976761,0.04390006,68278.0,68273.0,0.0764]
[1718240976947,0.18821999,68277.0,68276.0,0.3943]
[1718240977188,0.24431993,68277.0,68276.0,0.3943]
[1718240977355,0.28821999,68277.0,68276.0,0.3943]
[1718240977555,0.28821999,68277.0,68276.0,0.2743]
[1718240978229,0.43166981,68277.0,68276.0,0.3943]
[1718240978589,0.48766981,68277.0,68276.0,0.3943]
[1718240979430,0.50166981,68277.0,68276.0,0.3943]
[1718240979704,0.43171641,68277.0,68276.0,0.3943]
[1718240980112,0.50225981,68277.0,68276.0,0.3943]
[1718240980709,0.50225981,68277.0,68276.0,0.046]
[1718240981078,0.43640972,68277.0,68276.0,0.166]
[1718240982800,0.43640972,68277.0,68276.0,0.046]
[1718240983008,0.76097752,68277.0,68276.0,0.046]
[1718240983217,0.84877764,68277.0,68276.0,0.046]
[1718240983424,0.79723125,68277.0,68276.0,0.046]
[1718240983777,0.79721269,68277.0,68276.0,0.046]
[1718240985142,0.7961385,68277.0,68276.0,0.046]
[1718240985931,0.70833838,68277.0,68276.0,0.046]
[1718240986139,0.73133838,68277.0,68276.0,0.046]
[1718240986337,0.97713838,68277.0,68276.0,0.046]
[1718240986588,1.19982831,68277.0,68276.0,0.046]
[1718240989241,1.09007816,68277.0,68276.0,0.046]
[1718240990047,0.84427816,68277.0,68276.0,0.046]
[1718240990660,0.84111775,68277.0,68276.0,0.046]
[1718240992210,0.73133838,68277.0,68276.0,0.046]
[1718240992419,0.84111775,68277.0,68276.0,0.046]
[1718240993299,0.73133838,68277.0,68276.0,0.166]
[1718240993534,0.73133838,68277.0,68276.0,0.046]
[1718240993679,0.8172275,68277.0,68276.0,0.046]
[1718240993879,0.65233838,68277.0,68276.0,0.046]
[1718240994084,0.70833838,68277.0,68276.0,0.046]
[1718240995101,0.81811775,68277.0,68276.0,0.046]
[1718240995501,0.83561045,68277.0,68276.0,0.046]
[1718240996277,0.83350782,68277.0,68276.0,0.046946]
[1718240996444,0.72372309,68277.0,68276.0,0.046946]
[1718240996648,0.81155359,68277.0,68276.0,0.166946]
[1718240997369,0.75555359,68277.0,68276.0,0.166946]
[1718240997605,0.81155359,68277.0,68276.0,0.166946]
[1718240998144,0.75555359,68277.0,68276.0,0.166946]
[1718240998347,0.81155359,68277.0,68276.0,0.166946]
[1718240998554,0.81155359,68277.0,68276.0,0.046946]
[1718240999572,0.81155359,68277.0,68276.0,0.166946]
[1718241000354,0.81155359,68277.0,68276.0,0.046946]
[1718241000355,0.72372309,68277.0,68276.0,0.046946]
[1718241000685,0.75555359,68277.0,68276.0,0.166946]
[1718241000908,0.75555359,68277.0,68276.0,0.408646]
[1718241001125,0.34581054,68277.0,68276.0,0.408646]
[1718241001288,0.27581263,68277.0,68276.0,0.408646]
[1718241002064,0.31973579,68277.0,68276.0,0.408646]
[1718241002465,0.27581263,68277.0,68276.0,0.408646]
[1718241002663,0.27581263,68277.0,68276.0,0.046946]
[1718241002892,0.47404248,68277.0,68276.0,0.046946]
[1718241003091,0.82600753,68277.0,68276.0,0.046946]
[1718241003327,0.91189871,68277.0,68276.0,0.046946]
[1718241004841,0.84160951,68277.0,68276.0,0.046946]
[1718241005041,0.93220671,68277.0,68276.0,0.046946]
[1718241005623,0.93220671,68277.0,68276.0,0.400046]
[1718241005624,0.77686161,68277.0,68276.0,0.400046]
[1718241005830,0.86470231,68277.0,68276.0,0.400046]
[1718241006005,0.86348879,68277.0,68276.0,0.400046]
[1718241006217,0.43228983,68277.0,68276.0,0.400046]